[Event "Live Chess"]
[Site "Chess.com"]
[Date "2011.01.12"]
[Round "-"]
[White "hipposcottimus"]
[Black "joaolima39"]
[Result "1-0"]
[CurrentPosition "3B2k1/5pp1/p1R4p/5P2/7P/8/PPK5/6r1 b - -"]
[Timezone "UTC"]
[ECO "C41"]
[ECOUrl "https://www.chess.com/openings/Philidor-Defense-3.d4-Bg4-4.dxe5"]
[UTCDate "2011.01.12"]
[UTCTime "17:34:23"]
[WhiteElo "1334"]
[BlackElo "1106"]
[TimeControl "300"]
[Termination "hipposcottimus won on time"]
[StartTime "17:34:23"]
[EndDate "2011.01.12"]
[EndTime "17:43:50"]
[Link "https://www.chess.com/game/live/86863527"]

1. e4 {[%clk 0:05:00]} 1... e5 {[%clk 0:05:00]} 2. Nf3 {[%clk 0:04:52.7]} 2... d6 {[%clk 0:04:57.8]} 3. d4 {[%clk 0:04:50.8]} 3... Bg4 {[%clk 0:04:55.7]} 4. dxe5 {[%clk 0:04:48.6]} 4... Bxf3 {[%clk 0:04:54.1]} 5. Qxf3 {[%clk 0:04:46.5]} 5... dxe5 {[%clk 0:04:48.4]} 6. Nc3 {[%clk 0:04:42.7]} 6... Nf6 {[%clk 0:04:37.8]} 7. Bg5 {[%clk 0:04:38]} 7... Be7 {[%clk 0:04:31.6]} 8. Bd3 {[%clk 0:04:29.5]} 8... c6 {[%clk 0:04:27.8]} 9. O-O-O {[%clk 0:04:27.2]} 9... Nbd7 {[%clk 0:04:23.6]} 10. h4 {[%clk 0:04:15.6]} 10... Bb4 {[%clk 0:04:08.9]} 11. Na4 {[%clk 0:04:06]} 11... b5 {[%clk 0:04:01.6]} 12. c3 {[%clk 0:04:01.7]} 12... Qa5 {[%clk 0:03:26.6]} 13. cxb4 {[%clk 0:03:58.4]} 13... Qxa4 {[%clk 0:03:21.2]} 14. Kb1 {[%clk 0:03:53.1]} 14... Qxb4 {[%clk 0:03:17.3]} 15. Rc1 {[%clk 0:03:40.1]} 15... c5 {[%clk 0:03:08.4]} 16. Bd2 {[%clk 0:03:34.4]} 16... Qd4 {[%clk 0:03:01]} 17. Bc3 {[%clk 0:03:25.8]} 17... Qd6 {[%clk 0:02:53]} 18. Bxb5 {[%clk 0:03:20.1]} 18... O-O {[%clk 0:02:43.8]} 19. Rhd1 {[%clk 0:03:07.7]} 19... Qe6 {[%clk 0:02:34.6]} 20. Qf5 {[%clk 0:02:54.4]} 20... Nb6 {[%clk 0:02:06.8]} 21. Bxe5 {[%clk 0:02:43.6]} 21... a6 {[%clk 0:01:06.3]} 22. Be2 {[%clk 0:02:11.7]} 22... Rfe8 {[%clk 0:01:03.2]} 23. Bxf6 {[%clk 0:01:58.3]} 23... Qxf5 {[%clk 0:00:47.6]} 24. exf5 {[%clk 0:01:46.7]} 24... Rxe2 {[%clk 0:00:45.5]} 25. Bg5 {[%clk 0:01:07.9]} 25... Rxf2 {[%clk 0:00:41.4]} 26. Rxc5 {[%clk 0:00:54.4]} 26... Rxg2 {[%clk 0:00:37.9]} 27. Rc6 {[%clk 0:00:50.1]} 27... Nd7 {[%clk 0:00:27.3]} 28. Rxd7 {[%clk 0:00:47.5]} 28... Rg1+ {[%clk 0:00:19.6]} 29. Kc2 {[%clk 0:00:45.7]} 29... h6 {[%clk 0:00:14.3]} 30. Rd8+ {[%clk 0:00:41.7]} 30... Rxd8 {[%clk 0:00:07.1]} 31. Bxd8 {[%clk 0:00:41.2]} 1-0

[Event "Live Chess"]
[Site "Chess.com"]
[Date "2011.01.12"]
[Round "-"]
[White "hipposcottimus"]
[Black "astronautbutter"]
[Result "0-1"]
[CurrentPosition "r3k2r/2R2p1p/p2p2pB/1p1bp1Q1/8/5N2/P5PP/5q1K w kq -"]
[Timezone "UTC"]
[ECO "B20"]
[ECOUrl "https://www.chess.com/openings/Sicilian-Defense"]
[UTCDate "2011.01.12"]
[UTCTime "02:54:50"]
[WhiteElo "1334"]
[BlackElo "1380"]
[TimeControl "180+10"]
[Termination "astronautbutter won by resignation"]
[StartTime "02:54:50"]
[EndDate "2011.01.12"]
[EndTime "03:05:14"]
[Link "https://www.chess.com/game/live/86667571"]

1. e4 {[%clk 0:03:00]} 1... c5 {[%clk 0:03:00]} 2. Bb5 {[%clk 0:03:08.1]} 2... a6 {[%clk 0:02:47.2]} 3. Be2 {[%clk 0:03:16.9]} 3... d6 {[%clk 0:02:54.3]} 4. Nf3 {[%clk 0:03:23.5]} 4... g6 {[%clk 0:03:02]} 5. d4 {[%clk 0:03:28.2]} 5... Bg7 {[%clk 0:02:59.8]} 6. dxc5 {[%clk 0:03:33.5]} 6... Qa5+ {[%clk 0:03:03.8]} 7. Bd2 {[%clk 0:03:39.6]} 7... Qxc5 {[%clk 0:03:09.1]} 8. Nc3 {[%clk 0:03:46]} 8... b5 {[%clk 0:03:10.4]} 9. Be3 {[%clk 0:03:45.8]} 9... Bxc3+ {[%clk 0:03:07.6]} 10. bxc3 {[%clk 0:03:47.3]} 10... Qc7 {[%clk 0:03:12.1]} 11. O-O {[%clk 0:03:53.7]} 11... Nf6 {[%clk 0:03:18]} 12. Bd4 {[%clk 0:04:01.2]} 12... e5 {[%clk 0:03:16.7]} 13. Be3 {[%clk 0:03:56.8]} 13... Nxe4 {[%clk 0:03:21.4]} 14. Bh6 {[%clk 0:04:01.7]} 14... Nxc3 {[%clk 0:03:15.4]} 15. Qd2 {[%clk 0:03:56.4]} 15... Nxe2+ {[%clk 0:03:21.9]} 16. Qxe2 {[%clk 0:04:00.5]} 16... Nc6 {[%clk 0:03:15]} 17. Nh4 {[%clk 0:03:56.2]} 17... Nd4 {[%clk 0:03:10.8]} 18. Qd2 {[%clk 0:03:53.1]} 18... Qxc2 {[%clk 0:03:01.2]} 19. Qg5 {[%clk 0:03:58.3]} 19... Be6 {[%clk 0:02:24.7]} 20. Rac1 {[%clk 0:03:33.4]} 20... Ne2+ {[%clk 0:02:09.1]} 21. Kh1 {[%clk 0:03:36]} 21... Nxc1 {[%clk 0:02:17.8]} 22. Rxc1 {[%clk 0:03:44.9]} 22... Qxf2 {[%clk 0:02:02.8]} 23. Nf3 {[%clk 0:02:40.8]} 23... Bd5 {[%clk 0:01:36.9]} 24. Rc7 {[%clk 0:02:41.8]} 24... Qf1+ {[%clk 0:01:06.2]} 0-1

[Event "Live Chess"]
[Site "Chess.com"]
[Date "2011.01.12"]
[Round "-"]
[White "galaxias"]
[Black "hipposcottimus"]
[Result "1-0"]
[CurrentPosition "8/5p1p/1Q2kB2/8/6b1/P7/2q1r1PP/3R1R1K b - -"]
[Timezone "UTC"]
[ECO "D00"]
[ECOUrl "https://www.chess.com/openings/Queens-Pawn-Opening-1...d5-2.e3-c5"]
[UTCDate "2011.01.12"]
[UTCTime "00:47:07"]
[WhiteElo "1205"]
[BlackElo "1341"]
[TimeControl "600"]
[Termination "galaxias won by resignation"]
[StartTime "00:47:07"]
[EndDate "2011.01.12"]
[EndTime "01:01:20"]
[Link "https://www.chess.com/game/live/86638366"]

1. d4 {[%clk 0:10:00]} 1... d5 {[%clk 0:10:00]} 2. e3 {[%clk 0:09:57.3]} 2... c5 {[%clk 0:09:57.2]} 3. dxc5 {[%clk 0:09:50.2]} 3... e5 {[%clk 0:09:53.1]} 4. Bb5+ {[%clk 0:09:29.9]} 4... Nc6 {[%clk 0:09:47.2]} 5. Nf3 {[%clk 0:09:12.7]} 5... e4 {[%clk 0:09:32.2]} 6. Ne5 {[%clk 0:09:01.9]} 6... Qf6 {[%clk 0:09:17.5]} 7. Bxc6+ {[%clk 0:08:47]} 7... bxc6 {[%clk 0:09:16.4]} 8. f4 {[%clk 0:08:11.6]} 8... exf3 {[%clk 0:09:13.2]} 9. O-O {[%clk 0:08:06.4]} 9... Qxe5 {[%clk 0:09:07.6]} 10. Qxf3 {[%clk 0:07:54.7]} 10... Nf6 {[%clk 0:08:58.2]} 11. Nc3 {[%clk 0:07:27.1]} 11... Bxc5 {[%clk 0:08:49.3]} 12. a3 {[%clk 0:06:44.9]} 12... d4 {[%clk 0:08:43.8]} 13. exd4 {[%clk 0:06:37.7]} 13... Bxd4+ {[%clk 0:08:28]} 14. Kh1 {[%clk 0:06:29.1]} 14... O-O {[%clk 0:08:26.7]} 15. Qxc6 {[%clk 0:05:57.3]} 15... Bd7 {[%clk 0:08:08.1]} 16. Qf3 {[%clk 0:05:23.6]} 16... Bg4 {[%clk 0:07:52]} 17. Qf4 {[%clk 0:04:40.2]} 17... Bxc3 {[%clk 0:07:37.1]} 18. bxc3 {[%clk 0:04:33.2]} 18... Qxc3 {[%clk 0:07:33.1]} 19. Be3 {[%clk 0:03:41.5]} 19... Rfe8 {[%clk 0:07:19.1]} 20. Bd4 {[%clk 0:03:25.2]} 20... Qxc2 {[%clk 0:06:26.2]} 21. Bxf6 {[%clk 0:03:04.7]} 21... Re4 {[%clk 0:06:12.7]} 22. Qg5 {[%clk 0:02:47.6]} 22... Kf8 {[%clk 0:05:06.1]} 23. Qxg7+ {[%clk 0:02:39.1]} 23... Ke8 {[%clk 0:04:47.9]} 24. Qg8+ {[%clk 0:02:33.8]} 24... Kd7 {[%clk 0:04:46.6]} 25. Qxa8 {[%clk 0:02:28.3]} 25... Re2 {[%clk 0:04:38.5]} 26. Qxa7+ {[%clk 0:02:13.8]} 26... Kd6 {[%clk 0:04:25.3]} 27. Rad1+ {[%clk 0:02:01.3]} 27... Ke6 {[%clk 0:04:13]} 28. Qb6+ {[%clk 0:01:48.1]} 1-0

[Event "Live Chess"]
[Site "Chess.com"]
[Date "2011.01.12"]
[Round "-"]
[White "hipposcottimus"]
[Black "galaxias"]
[Result "1-0"]
[CurrentPosition "2kr2r1/1p3pP1/p6R/2pN4/2Pn4/6P1/PP1K1Q2/4R3 b - -"]
[Timezone "UTC"]
[ECO "B20"]
[ECOUrl "https://www.chess.com/openings/Sicilian-Defense"]
[UTCDate "2011.01.12"]
[UTCTime "00:36:35"]
[WhiteElo "1351"]
[BlackElo "1193"]
[TimeControl "600"]
[Termination "hipposcottimus won by resignation"]
[StartTime "00:36:35"]
[EndDate "2011.01.12"]
[EndTime "00:46:16"]
[Link "https://www.chess.com/game/live/86635924"]

1. e4 {[%clk 0:10:00]} 1... c5 {[%clk 0:10:00]} 2. Bb5 {[%clk 0:09:38.4]} 2... a6 {[%clk 0:09:48.5]} 3. Be2 {[%clk 0:09:34.1]} 3... Nc6 {[%clk 0:09:44.5]} 4. c4 {[%clk 0:09:18.1]} 4... e5 {[%clk 0:09:36.8]} 5. d3 {[%clk 0:08:40.9]} 5... h6 {[%clk 0:09:32.5]} 6. f4 {[%clk 0:08:38.2]} 6... exf4 {[%clk 0:09:27.5]} 7. Bxf4 {[%clk 0:08:34]} 7... Nf6 {[%clk 0:09:20.1]} 8. Nf3 {[%clk 0:08:30.8]} 8... d6 {[%clk 0:09:09.6]} 9. Nc3 {[%clk 0:08:11.1]} 9... Be6 {[%clk 0:09:01]} 10. d4 {[%clk 0:08:07.1]} 10... Bg4 {[%clk 0:08:33.1]} 11. e5 {[%clk 0:08:02.7]} 11... dxe5 {[%clk 0:08:28.7]} 12. dxe5 {[%clk 0:07:55.6]} 12... Bxf3 {[%clk 0:08:22.7]} 13. exf6 {[%clk 0:07:50.6]} 13... Bxe2 {[%clk 0:08:16.1]} 14. Qxe2+ {[%clk 0:07:43.8]} 14... Be7 {[%clk 0:07:33.6]} 15. fxg7 {[%clk 0:07:34]} 15... Rg8 {[%clk 0:07:16.5]} 16. Bxh6 {[%clk 0:07:30.6]} 16... Nd4 {[%clk 0:06:49]} 17. Qf2 {[%clk 0:07:21.1]} 17... Bh4 {[%clk 0:06:33.8]} 18. g3 {[%clk 0:07:13]} 18... Bxg3 {[%clk 0:06:15.7]} 19. hxg3 {[%clk 0:07:10]} 19... Qe7+ {[%clk 0:05:59]} 20. Kd2 {[%clk 0:06:58.3]} 20... O-O-O {[%clk 0:05:25.2]} 21. Nd5 {[%clk 0:06:48]} 21... Qd6 {[%clk 0:04:41.7]} 22. Rae1 {[%clk 0:06:22.2]} 22... Qxh6+ {[%clk 0:04:11.8]} 23. Rxh6 {[%clk 0:06:19.1]} 1-0

[Event "Live Chess"]
[Site "Chess.com"]
[Date "2011.01.12"]
[Round "-"]
[White "galaxias"]
[Black "hipposcottimus"]
[Result "0-1"]
[CurrentPosition "1n5k/pp4pp/8/4p3/4n3/4p3/P3r2P/1K5R w - -"]
[Timezone "UTC"]
[ECO "D00"]
[ECOUrl "https://www.chess.com/openings/Queens-Pawn-Opening-1...d5-2.e3-c5"]
[UTCDate "2011.01.12"]
[UTCTime "00:21:34"]
[WhiteElo "1198"]
[BlackElo "1346"]
[TimeControl "600"]
[Termination "hipposcottimus won by resignation"]
[StartTime "00:21:34"]
[EndDate "2011.01.12"]
[EndTime "00:36:06"]
[Link "https://www.chess.com/game/live/86632138"]

1. d4 {[%clk 0:10:00]} 1... d5 {[%clk 0:10:00]} 2. e3 {[%clk 0:09:57.9]} 2... c5 {[%clk 0:09:51.8]} 3. dxc5 {[%clk 0:09:49.6]} 3... e5 {[%clk 0:09:48.6]} 4. Nc3 {[%clk 0:09:36.4]} 4... Nf6 {[%clk 0:09:42.5]} 5. e4 {[%clk 0:09:24.4]} 5... d4 {[%clk 0:09:37.8]} 6. Nd5 {[%clk 0:09:09.4]} 6... Nxe4 {[%clk 0:09:34]} 7. Bc4 {[%clk 0:08:32.7]} 7... Bxc5 {[%clk 0:09:28]} 8. Qf3 {[%clk 0:08:07]} 8... f5 {[%clk 0:08:57.9]} 9. g4 {[%clk 0:06:54.3]} 9... O-O {[%clk 0:08:54.8]} 10. Nb6+ {[%clk 0:06:29.1]} 10... Kh8 {[%clk 0:08:49.1]} 11. Nxa8 {[%clk 0:06:26.3]} 11... Qa5+ {[%clk 0:08:33]} 12. c3 {[%clk 0:05:31.4]} 12... dxc3 {[%clk 0:08:30.9]} 13. b4 {[%clk 0:05:05]} 13... Qxb4 {[%clk 0:08:23.3]} 14. Qe2 {[%clk 0:03:55.3]} 14... c2+ {[%clk 0:07:47.3]} 15. Bd2 {[%clk 0:03:33.3]} 15... Qb1+ {[%clk 0:07:45.5]} 16. Rxb1 {[%clk 0:03:09.7]} 16... cxb1=Q+ {[%clk 0:07:40.4]} 17. Qd1 {[%clk 0:03:02]} 17... Bxf2+ {[%clk 0:07:32]} 18. Ke2 {[%clk 0:02:49]} 18... Qxd1+ {[%clk 0:06:38.8]} 19. Kxd1 {[%clk 0:02:38.9]} 19... Rd8 {[%clk 0:06:33]} 20. Ne2 {[%clk 0:02:07.1]} 20... Rxd2+ {[%clk 0:06:19.8]} 21. Kc1 {[%clk 0:01:53.7]} 21... Be3 {[%clk 0:06:18.3]} 22. Kb1 {[%clk 0:01:35.1]} 22... f4 {[%clk 0:05:53.7]} 23. Nc7 {[%clk 0:01:16]} 23... Bxg4 {[%clk 0:05:36.4]} 24. Nd5 {[%clk 0:01:06]} 24... Bxe2 {[%clk 0:05:29]} 25. Nxe3 {[%clk 0:00:52.4]} 25... fxe3 {[%clk 0:05:10.1]} 26. Bxe2 {[%clk 0:00:33]} 26... Rxe2 {[%clk 0:05:08.2]} 0-1

[Event "Live Chess"]
[Site "Chess.com"]
[Date "2011.01.12"]
[Round "-"]
[White "governmentcheese"]
[Black "hipposcottimus"]
[Result "0-1"]
[CurrentPosition "rn4k1/ppp2ppp/8/2bq1b2/5P2/3Pr2P/PP2QKP1/R4BNR w - -"]
[Timezone "UTC"]
[ECO "C31"]
[ECOUrl "https://www.chess.com/openings/Kings-Gambit-Declined-Falkbeer-Accepted-Staunton-Line"]
[UTCDate "2011.01.12"]
[UTCTime "00:07:16"]
[WhiteElo "1346"]
[BlackElo "1341"]
[TimeControl "600"]
[Termination "hipposcottimus won by resignation"]
[StartTime "00:07:16"]
[EndDate "2011.01.12"]
[EndTime "00:10:30"]
[Link "https://www.chess.com/game/live/86628744"]

1. e4 {[%clk 0:10:00]} 1... e5 {[%clk 0:10:00]} 2. f4 {[%clk 0:09:57.8]} 2... d5 {[%clk 0:09:58]} 3. exd5 {[%clk 0:09:51.1]} 3... e4 {[%clk 0:09:57.7]} 4. Qe2 {[%clk 0:09:48.3]} 4... Nf6 {[%clk 0:09:53.6]} 5. Nc3 {[%clk 0:09:39.3]} 5... Bg4 {[%clk 0:09:50]} 6. Qe3 {[%clk 0:09:31.5]} 6... Bf5 {[%clk 0:09:34.5]} 7. h3 {[%clk 0:08:47.7]} 7... Nxd5 {[%clk 0:09:29.7]} 8. Nxd5 {[%clk 0:08:43.8]} 8... Qxd5 {[%clk 0:09:28.2]} 9. d3 {[%clk 0:08:39.1]} 9... Bc5 {[%clk 0:09:20.7]} 10. Qe2 {[%clk 0:08:28.2]} 10... O-O {[%clk 0:09:16.1]} 11. Be3 {[%clk 0:08:17.4]} 11... exd3 {[%clk 0:09:08.6]} 12. cxd3 {[%clk 0:08:15]} 12... Re8 {[%clk 0:09:07.5]} 13. Kf2 {[%clk 0:08:05.7]} 13... Rxe3 {[%clk 0:08:47.6]} 0-1

[Event "Live Chess"]
[Site "Chess.com"]
[Date "2011.01.11"]
[Round "-"]
[White "flurp"]
[Black "hipposcottimus"]
[Result "0-1"]
[CurrentPosition "2r3k1/5ppp/8/8/p5PP/7R/2pK1P2/q7 b - -"]
[Timezone "UTC"]
[ECO "C20"]
[ECOUrl "https://www.chess.com/openings/Kings-Pawn-Opening-Leonardis-Variation-2...Nf6"]
[UTCDate "2011.01.11"]
[UTCTime "23:59:38"]
[WhiteElo "1261"]
[BlackElo "1332"]
[TimeControl "360"]
[Termination "hipposcottimus won by resignation"]
[StartTime "23:59:38"]
[EndDate "2011.01.12"]
[EndTime "00:06:30"]
[Link "https://www.chess.com/game/live/86626863"]

1. e4 {[%clk 0:06:00]} 1... e5 {[%clk 0:06:00]} 2. d3 {[%clk 0:05:51.8]} 2... Nf6 {[%clk 0:05:54.5]} 3. Bg5 {[%clk 0:05:37.9]} 3... d5 {[%clk 0:05:52.2]} 4. Qe2 {[%clk 0:05:34.4]} 4... dxe4 {[%clk 0:05:47]} 5. Bxf6 {[%clk 0:05:32.3]} 5... Qxf6 {[%clk 0:05:39.6]} 6. dxe4 {[%clk 0:05:30.7]} 6... Nc6 {[%clk 0:05:13.2]} 7. c3 {[%clk 0:05:08.5]} 7... Bd6 {[%clk 0:04:50.8]} 8. Na3 {[%clk 0:05:05.4]} 8... Bxa3 {[%clk 0:04:33.4]} 9. O-O-O {[%clk 0:05:01.3]} 9... Bxb2+ {[%clk 0:04:21.4]} 10. Kxb2 {[%clk 0:04:59.6]} 10... Be6 {[%clk 0:04:15.5]} 11. h4 {[%clk 0:04:54.6]} 11... Qe7 {[%clk 0:04:10.4]} 12. Qb5 {[%clk 0:04:43.7]} 12... Rb8 {[%clk 0:03:47.3]} 13. Nf3 {[%clk 0:04:39.8]} 13... O-O {[%clk 0:03:44.6]} 14. Nxe5 {[%clk 0:04:36.2]} 14... Nxe5 {[%clk 0:03:33.7]} 15. Qxe5 {[%clk 0:04:34.3]} 15... c5 {[%clk 0:03:09.4]} 16. c4 {[%clk 0:04:30.6]} 16... a5 {[%clk 0:03:07.3]} 17. a4 {[%clk 0:04:28.2]} 17... b5 {[%clk 0:03:04.6]} 18. axb5 {[%clk 0:04:25.5]} 18... a4 {[%clk 0:03:02.7]} 19. Ka3 {[%clk 0:04:20.1]} 19... Qa7 {[%clk 0:02:51.3]} 20. Rb1 {[%clk 0:04:06.3]} 20... Rb6 {[%clk 0:02:40.8]} 21. g3 {[%clk 0:04:00.5]} 21... Rc8 {[%clk 0:02:37.7]} 22. Bh3 {[%clk 0:03:58.6]} 22... Bxh3 {[%clk 0:02:27.4]} 23. Rxh3 {[%clk 0:03:57]} 23... Qa5 {[%clk 0:02:26.8]} 24. Qc3 {[%clk 0:03:51.9]} 24... Qxc3+ {[%clk 0:02:22]} 25. Ka2 {[%clk 0:03:45.7]} 25... Qxc4+ {[%clk 0:02:20.6]} 26. Ka1 {[%clk 0:03:37.6]} 26... Rxb5 {[%clk 0:02:14.9]} 27. Rxb5 {[%clk 0:03:34.1]} 27... Qxb5 {[%clk 0:02:12.5]} 28. g4 {[%clk 0:03:33.3]} 28... c4 {[%clk 0:02:09.2]} 29. e5 {[%clk 0:03:32.2]} 29... Qxe5+ {[%clk 0:02:06.6]} 30. Ka2 {[%clk 0:03:29.9]} 30... c3 {[%clk 0:02:04.7]} 31. Kb1 {[%clk 0:03:27]} 31... c2+ {[%clk 0:02:01.7]} 32. Kc1 {[%clk 0:03:25.9]} 32... Qa1+ {[%clk 0:02:00.7]} 33. Kd2 {[%clk 0:03:23.6]} 0-1

[Event "Live Chess"]
[Site "Chess.com"]
[Date "2011.01.11"]
[Round "-"]
[White "hipposcottimus"]
[Black "RafDj1"]
[Result "0-1"]
[CurrentPosition "1Qb1r3/p4k2/2q4p/1pb1p1p1/3n4/3P4/PP3PPP/R1B2RK1 w - -"]
[Timezone "UTC"]
[ECO "C50"]
[ECOUrl "https://www.chess.com/openings/Italian-Game"]
[UTCDate "2011.01.11"]
[UTCTime "21:44:37"]
[WhiteElo "1325"]
[BlackElo "1364"]
[TimeControl "600"]
[Termination "RafDj1 won on time"]
[StartTime "21:44:37"]
[EndDate "2011.01.11"]
[EndTime "21:53:20"]
[Link "https://www.chess.com/game/live/86590132"]

1. e4 {[%clk 0:10:00]} 1... e5 {[%clk 0:10:00]} 2. Nf3 {[%clk 0:09:58]} 2... Nc6 {[%clk 0:09:52.4]} 3. Bc4 {[%clk 0:09:56.9]} 3... b5 {[%clk 0:09:41.5]} 4. Bb3 {[%clk 0:09:53.8]} 4... Nf6 {[%clk 0:09:35.8]} 5. Ng5 {[%clk 0:09:47.9]} 5... d5 {[%clk 0:09:27.9]} 6. exd5 {[%clk 0:09:46.6]} 6... Nxd5 {[%clk 0:09:11]} 7. Nxf7 {[%clk 0:09:43.8]} 7... Kxf7 {[%clk 0:09:04.7]} 8. Qf3+ {[%clk 0:09:40.9]} 8... Ke6 {[%clk 0:08:58.9]} 9. Nc3 {[%clk 0:09:39.3]} 9... Ne7 {[%clk 0:08:40.5]} 10. d3 {[%clk 0:09:05.7]} 10... h6 {[%clk 0:08:28]} 11. Ne4 {[%clk 0:08:45.5]} 11... Nf5 {[%clk 0:07:42.8]} 12. Nc5+ {[%clk 0:08:35.4]} 12... Bxc5 {[%clk 0:07:39.1]} 13. O-O {[%clk 0:08:02.4]} 13... g5 {[%clk 0:07:27.8]} 14. Qh5 {[%clk 0:07:48.8]} 14... Qe8 {[%clk 0:07:21]} 15. Qf3 {[%clk 0:07:26.5]} 15... c6 {[%clk 0:07:13.5]} 16. c4 {[%clk 0:07:23.7]} 16... Nd4 {[%clk 0:07:04.3]} 17. cxd5+ {[%clk 0:07:19.7]} 17... cxd5 {[%clk 0:06:58.3]} 18. Qxd5+ {[%clk 0:07:14.6]} 18... Kf6 {[%clk 0:06:46.6]} 19. Qxa8 {[%clk 0:06:53]} 19... Qc6 {[%clk 0:06:41.9]} 20. Qb8 {[%clk 0:05:32.4]} 20... Re8 {[%clk 0:06:31.3]} 21. Bf7 {[%clk 0:05:02.5]} 21... Kxf7 {[%clk 0:06:25.3]} 0-1

[Event "Live Chess"]
[Site "Chess.com"]
[Date "2011.01.11"]
[Round "-"]
[White "hipposcottimus"]
[Black "saydoo13"]
[Result "1-0"]
[CurrentPosition "8/8/p4kpp/1Q6/8/P7/6PP/1B5K b - -"]
[Timezone "UTC"]
[ECO "C55"]
[ECOUrl "https://www.chess.com/openings/Italian-Game-Anti-Fried-Liver-Defense"]
[UTCDate "2011.01.11"]
[UTCTime "21:18:52"]
[WhiteElo "1332"]
[BlackElo "1390"]
[TimeControl "600"]
[Termination "hipposcottimus won by resignation"]
[StartTime "21:18:52"]
[EndDate "2011.01.11"]
[EndTime "21:34:08"]
[Link "https://www.chess.com/game/live/86583915"]

1. e4 {[%clk 0:10:00]} 1... e5 {[%clk 0:10:00]} 2. Nf3 {[%clk 0:09:57.7]} 2... Nc6 {[%clk 0:09:57.1]} 3. Bc4 {[%clk 0:09:55.7]} 3... h6 {[%clk 0:09:52.8]} 4. d4 {[%clk 0:09:51.9]} 4... d6 {[%clk 0:09:41]} 5. dxe5 {[%clk 0:09:47.7]} 5... Nxe5 {[%clk 0:09:34.6]} 6. Bb3 {[%clk 0:09:39.6]} 6... Nc6 {[%clk 0:09:26.7]} 7. O-O {[%clk 0:09:36.8]} 7... a6 {[%clk 0:09:24.3]} 8. Be3 {[%clk 0:09:19.2]} 8... Nf6 {[%clk 0:09:20.6]} 9. Nc3 {[%clk 0:09:10]} 9... b5 {[%clk 0:09:05.6]} 10. a3 {[%clk 0:09:04.1]} 10... Bb7 {[%clk 0:09:04]} 11. Re1 {[%clk 0:08:54.1]} 11... Be7 {[%clk 0:08:57]} 12. Bd4 {[%clk 0:08:25.5]} 12... Nxd4 {[%clk 0:08:52.8]} 13. Nxd4 {[%clk 0:08:22.7]} 13... O-O {[%clk 0:08:39.9]} 14. Nf5 {[%clk 0:08:15.1]} 14... Qd7 {[%clk 0:08:20]} 15. Qf3 {[%clk 0:08:10.6]} 15... Rae8 {[%clk 0:07:15.7]} 16. Nd5 {[%clk 0:07:40.6]} 16... Nxe4 {[%clk 0:06:49.2]} 17. Rxe4 {[%clk 0:07:30.9]} 17... c5 {[%clk 0:06:24.9]} 18. c4 {[%clk 0:07:25.8]} 18... Bg5 {[%clk 0:06:08]} 19. Ba2 {[%clk 0:06:43.8]} 19... Rxe4 {[%clk 0:05:58.2]} 20. Qxe4 {[%clk 0:06:39.4]} 20... Re8 {[%clk 0:05:55.5]} 21. Qf3 {[%clk 0:06:37.3]} 21... Re5 {[%clk 0:05:50.7]} 22. Nfe3 {[%clk 0:05:47.4]} 22... Qe6 {[%clk 0:05:06.2]} 23. b3 {[%clk 0:05:39.1]} 23... Bxe3 {[%clk 0:04:53.3]} 24. fxe3 {[%clk 0:05:20.8]} 24... Rxe3 {[%clk 0:04:50.7]} 25. Qxe3 {[%clk 0:04:55]} 25... Qd7 {[%clk 0:04:07.4]} 26. Re1 {[%clk 0:04:34.4]} 26... Bc6 {[%clk 0:04:01.7]} 27. Bb1 {[%clk 0:04:30.5]} 27... bxc4 {[%clk 0:03:56]} 28. bxc4 {[%clk 0:04:17.2]} 28... Qg4 {[%clk 0:03:35.6]} 29. Ne7+ {[%clk 0:04:12.6]} 29... Kh8 {[%clk 0:03:29.8]} 30. Nxc6 {[%clk 0:04:10.5]} 30... g6 {[%clk 0:03:14.1]} 31. Qe8+ {[%clk 0:03:54.5]} 31... Kg7 {[%clk 0:03:11.5]} 32. Nd8 {[%clk 0:03:30.5]} 32... Qd4+ {[%clk 0:03:00.2]} 33. Kh1 {[%clk 0:03:23.8]} 33... Qxc4 {[%clk 0:02:56.4]} 34. Nxf7 {[%clk 0:02:37.4]} 34... Qxf7 {[%clk 0:02:53.1]} 35. Re7 {[%clk 0:02:35.3]} 35... Qxe7 {[%clk 0:02:43.2]} 36. Qxe7+ {[%clk 0:02:34.6]} 36... Kg8 {[%clk 0:02:39.9]} 37. Qxd6 {[%clk 0:02:34.2]} 37... Kg7 {[%clk 0:02:35.8]} 38. Qxc5 {[%clk 0:02:33.2]} 38... Kf6 {[%clk 0:02:32]} 39. Qb5 {[%clk 0:02:32.2]} 1-0